Cogmind - Beta 12 @@@ ROGUE MODE // 2023.04.09 @ 23:57:42 Player: Mr Goldstein Result: Destroyed by G-50 Soldier with Heavy Laser Performance ------------- Evolutions (5) 2500 Regions Visited (8) 1600 Robots Destroyed (4) 20 Value Destroyed (126) 126 Prototype IDs (0) 0 Alien Tech Used (0) 0 Bonus (1325) 1325 TOTAL SCORE: 5571 Bonus ------- Pacifist 1325 Cogmind --------- Core Integrity 0/1000 Matter 182/300 Energy 99/100 System Corruption 1% Temperature Cool (9) Movement Core (50) Location -5/Upper Caves Parts ------- > --- POWER (1) -------- (None) > --- PROPULSION (2) --- (None) > --- UTILITY (12) ----- (None) > --- WEAPON (2) ------- Chainsword > --- INVENTORY (5) ---- Chainsword Peak State ------------ > --- POWER ------------ (None) > --- PROPULSION ------- (None) > --- UTILITY ---------- (None) > --- WEAPON ----------- Chainsword > --- INVENTORY -------- (None) [Rating: 4] Favorites ----------- Power None Propulsion None Utility Improved Light Armor Plating Device Reaction Control System Protection Improved Light Armor Plating Weapon Chainsword Slashing Weapon Chainsword Build | -11 -10 -9 -8 -7 -6 -5 -5 -5 ------- Run | Jun Mat Mat Mat Fac Fac Fac Upp Upp Slots Evolved 10 | . . 2 2 2 2 2 . . Power . | . . . . . . . . . Propulsion . | . . . . . . . . . Utility 10 | . . 2 2 2 2 2 . . Weapon . | . . . . . . . . . Parts Attached 4 | . . . . 2 1 . . 1 Power . | . . . . . . . . . Engine . | . . . . . . . . . Core . | . . . . . . . . . Reactor . | . . . . . . . . . Propulsion . | . . . . . . . . . Treads . | . . . . . . . . . Leg . | . . . . . . . . . Wheel . | . . . . . . . . . Hover . | . . . . . . . . . Flight . | . . . . . . . . . Utility 2 | . . . . 1 1 . . . Device 1 | . . . . 1 . . . . Storage . | . . . . . . . . . Processor . | . . . . . . . . . Hackware . | . . . . . . . . . Protection 1 | . . . . . 1 . . . Artifact . | . . . . . . . . . Weapon 2 | . . . . 1 . . . 1 Energy Gun . | . . . . . . . . . Energy Cannon . | . . . . . . . . . Ballistic Gun . | . . . . . . . . . Ballistic Cannon . | . . . . . . . . . Launcher . | . . . . . . . . . Special Weapon . | . . . . . . . . . Impact Weapon . | . . . . . . . . . Slashing Weapon 2 | . . . . 1 . . . 1 Piercing Weapon . | . . . . . . . . . Special Melee Weapon . | . . . . . . . . . Unidentified Prototypes . | . . . . . . . . . Parts Lost 1 | . . . . . . . 1 . Power . | . . . . . . . . . Propulsion . | . . . . . . . . . Utility 1 | . . . . . . . 1 . Weapon . | . . . . . . . . . Highest Loss Streak 1 | . . . . . . . 1 . To Critical Strikes . | . . . . . . . . . Average Slot Usage (%) 2 | . . . . 3 5 5 1 3 Protection 1 | . . . . . 4 5 1 . Slashing Weapon 1 | . . . . 2 1 . . 3 Naked Turns 542 | . 38 60 50 178 7 . 181 28 Heaviest Build 3 | . . . . 3 3 3 3 3 Greatest Support 3 | 3 3 3 3 3 3 3 3 3 Greatest Overweight (x) . | . . . . . . . . . Average Overweight (x) . | . . . . . . . . . Largest Inventory Capacity 5 | 5 5 5 5 5 5 5 5 5 Average Capacity 5 | 5 5 5 5 5 5 5 5 5 Most Carried 3 | . . . . 1 3 2 2 2 Average Carried 1 | . . . . . 1 2 2 1 Final Capacity 5 | 5 5 5 5 5 5 5 5 5 Final Carried 2 | . . . . 1 2 2 2 1 Class Distribution -------------------- 100% | Mutant Dominant Class ---------------- Mutant | -10/Materials Mutant | -9/Materials Mutant | -8/Materials Mutant | -7/Factory Mutant | -6/Factory Mutant | -5/Factory Mutant | -5/Upper Caves Mutant | -5/Upper Caves Resources | -11 -10 -9 -8 -7 -6 -5 -5 -5 ----------- Run | Jun Mat Mat Mat Fac Fac Fac Upp Upp Matter Collected 96 | . . . . 22 . . 74 . Remotely . | . . . . . . . . . Salvage Created 58 | . . . . . 58 . . . Parts 7 | . . . . . 7 . . . Haulers Intercepted . | . . . . . . . . . Recyclers Shooed . | . . . . . . . . . Parts Field Recycled . | . . . . . . . . . Retrieved Matter . | . . . . . . . . . Parts Self-Destructed . | . . . . . . . . . Prevented . | . . . . . . . . . Kills | -11 -10 -9 -8 -7 -6 -5 -5 -5 ------- Run | Jun Mat Mat Mat Fac Fac Fac Upp Upp Combat Hostiles Destroyed 3 | . . . . . 3 . . . AOE 3 | . . . . . 3 . . . Classes Destroyed 2 | . . . . . 2 . . . Builder 1 | . . . . . 1 . . . Swarmer 3 | . . . . . 3 . . . Best Kill Streak 4 | . . . . . 4 . . . Combat Bots Only 3 | . . . . . 3 . . . Max Kills in Single Turn 4 | . . . . . 4 . . . Gunslinging . | . . . . . . . . . Exploded 3 | . . . . . 3 . . . Melee . | . . . . . . . . . Uniques/NPCs Destroyed . | . . . . . . . . . Combat | -11 -10 -9 -8 -7 -6 -5 -5 -5 -------- Run | Jun Mat Mat Mat Fac Fac Fac Upp Upp Damage Taken 2618 | . . 350 255 592 203 55 1114 49 Core 2345 | . . 350 255 549 187 55 915 34 Absorbed by Shields . | . . . . . . . . . Core Remaining (%) 60 | 100 100 12 53 21 78 . . . Volleys Fired . | . . . . . . . . . Largest . | . . . . . . . . . Hottest . | . . . . . . . . . Shots Fired . | . . . . . . . . . Gun . | . . . . . . . . . Cannon . | . . . . . . . . . Launcher . | . . . . . . . . . Special . | . . . . . . . . . Kinetic . | . . . . . . . . . Thermal . | . . . . . . . . . Explosive . | . . . . . . . . . Electromagnetic . | . . . . . . . . . Robot Hit Streak . | . . . . . . . . . Robot Miss Streak . | . . . . . . . . . Penetration Max . | . . . . . . . . . Secondary Targets . | . . . . . . . . . Shots Hit Robots 1 | . . . . 1 . . . . Core Hits 8 | . . 1 . . 7 . . . Critical Kills . | . . . . . . . . . Critical Parts Destroyed . | . . . . . . . . . Critical Strikes . | . . . . . . . . . Melee Attacks 3 | . . . . 1 1 . . 1 Impact . | . . . . . . . . . Slashing 3 | . . . . 1 1 . . 1 Piercing . | . . . . . . . . . Sneak Attacks . | . . . . . . . . . Combat Hostiles . | . . . . . . . . . Follow-up Attacks . | . . . . . . . . . Damage Inflicted 314 | . . 23 . 49 242 . . . Guns . | . . . . . . . . . Cannons . | . . . . . . . . . Explosions 242 | . . . . . 242 . . . Melee 41 | . . . . 41 . . . . Ramming 31 | . . 23 . 8 . . . . Kinetic . | . . . . . . . . . Thermal 215 | . . . . . 215 . . . Explosive . | . . . . . . . . . Electromagnetic 27 | . . . . . 27 . . . Impact . | . . . . . . . . . Slashing 41 | . . . . 41 . . . . Piercing . | . . . . . . . . . Highest Corruption 4 | . . 1 . 3 4 . 1 1 Average Corruption 1 | . . 1 . 1 1 . 1 1 Corruption Purged . | . . . . . . . . . Corruption Blocked . | . . . . . . . . . Overload Shots . | . . . . . . . . . Overflow Damage 1 | . . . . 1 . . . . Projectiles . | . . . . . . . . . Explosions . | . . . . . . . . . Melee 1 | . . . . 1 . . . . Knockbacks . | . . . . . . . . . Impact . | . . . . . . . . . Kinetic . | . . . . . . . . . Secondary . | . . . . . . . . . Self-Inflicted Damage 184 | . . 11 . 4 169 . . . Shots 3 | . . . . . 3 . . . Rammed 6 | . . 4 . 2 . . . . Targets Rammed 6 | . . 4 . 2 . . . . Kicked . | . . . . . . . . . Crushed . | . . . . . . . . . Highest Temperature 6 | . . 5 . . . . 6 . Average Temperature 5 | . . 5 . . . . 6 . Received Heat Transfer 611 | . . 96 72 114 . 18 302 9 Siege Activations . | . . . . . . . . . Robots Corrupted . | . . . . . . . . . Combat Hostiles . | . . . . . . . . . Parts Fried . | . . . . . . . . . Impact Corruptions . | . . . . . . . . . Robots Melted . | . . . . . . . . . Combat Hostiles . | . . . . . . . . . Parts Melted . | . . . . . . . . . Heat Transferred 150 | . . . . . 150 . . . Parts Sabotaged . | . . . . . . . . . Parts Stolen . | . . . . . . . . . Parts Stripped . | . . . . . . . . . Power Chain Reactions . | . . . . . . . . . Missiles Intercepted . | . . . . . . . . . Alert | -11 -10 -9 -8 -7 -6 -5 -5 -5 ------- Run | Jun Mat Mat Mat Fac Fac Fac Upp Upp Peak Influence 392 | . 15 80 78 340 392 267 . . Initial 191 | . . 5 33 35 166 191 . . Average 163 | . 1 52 48 160 299 220 . . Maximum Alert Level 1 | . . . . 1 1 1 . . Low Security (%) 64 | 100 100 100 100 68 23 42 . . Level 1 35 | . . . . 31 76 57 . . Level 2 . | . . . . . . . . . Level 3 . | . . . . . . . . . Level 4 . | . . . . . . . . . Level 5 . | . . . . . . . . . High Security . | . . . . . . . . . Max Security . | . . . . . . . . . Squads Dispatched 7 | . . 1 . 4 1 1 . . Investigation 3 | . . . . 2 . 1 . . Extermination 1 | . . . . 1 . . . . Reinforcement 3 | . . 1 . 1 1 . . . Assault . | . . . . . . . . . Garrison . | . . . . . . . . . Intercept . | . . . . . . . . . Searches Triggered . | . . . . . . . . . Construction Impeded . | . . . . . . . . . Haulers Reinforced . | . . . . . . . . . Active Scanning Responses . | . . . . . . . . . Cargo Convoy Interrupts . | . . . . . . . . . Stealth | -11 -10 -9 -8 -7 -6 -5 -5 -5 --------- Run | Jun Mat Mat Mat Fac Fac Fac Upp Upp Distress Signals 1 | . . . . . . 1 . . Communications Jammed . | . . . . . . . . . Distress Signals . | . . . . . . . . . Times Spotted 83 | . 2 9 12 18 8 12 17 5 Peak Tracking Total 12 | . 2 8 12 5 4 10 7 5 Tactical Retreats 16 | . . . . 5 2 2 7 . Traps | -11 -10 -9 -8 -7 -6 -5 -5 -5 ------- Run | Jun Mat Mat Mat Fac Fac Fac Upp Upp Traps Triggered 3 | . . . . 1 2 . . . Indirectly . | . . . . . . . . . Trap Hack Attempts . | . . . . . . . . . Triggered . | . . . . . . . . . Disarmed . | . . . . . . . . . Reprogrammed . | . . . . . . . . . Reused . | . . . . . . . . . Traps Extracted . | . . . . . . . . . Installed . | . . . . . . . . . Triggered . | . . . . . . . . . Machines | -11 -10 -9 -8 -7 -6 -5 -5 -5 ---------- Run | Jun Mat Mat Mat Fac Fac Fac Upp Upp Machines Disabled 5 | . . . . . 4 . . 1 Max in Single Turn 4 | . . . . . 4 . . 1 Machines Repaired . | . . . . . . . . . Machines Sabotaged . | . . . . . . . . . Overloaded Fab Kills . | . . . . . . . . . Hacking | -11 -10 -9 -8 -7 -6 -5 -5 -5 --------- Run | Jun Mat Mat Mat Fac Fac Fac Upp Upp Machines Accessed 6 | . . . 1 4 . 1 . . Terminals 5 | . . . 1 3 . 1 . . Fabricators 1 | . . . . 1 . . . . Repair Stations . | . . . . . . . . . Recycling Units . | . . . . . . . . . Scanalyzers . | . . . . . . . . . Garrison Access . | . . . . . . . . . Total Hacks 13 | . . . 2 9 . 2 . . Successful 2 | . . . . 1 . 1 . . Failed 11 | . . . 2 8 . 1 . . Catastrophic 2 | . . . 1 . . 1 . . Database Lockouts . | . . . . . . . . . Manual 7 | . . . 2 5 . . . . Terminals 12 | . . . 2 8 . 2 . . Fabricators 1 | . . . . 1 . . . . Repair Stations . | . . . . . . . . . Recycling Units . | . . . . . . . . . Scanalyzers . | . . . . . . . . . Garrison Access . | . . . . . . . . . Terminal Hacks 1 | . . . . . . 1 . . Robot Analysis 1 | . . . . . . 1 . . Fabricator Hacks . | . . . . . . . . . Repair Station Hacks . | . . . . . . . . . Recycling Unit Hacks . | . . . . . . . . . Scanalyzer . | . . . . . . . . . Garrison Access Hacks . | . . . . . . . . . Unauthorized Hacks 1 | . . . . 1 . . . . Terminals . | . . . . . . . . . Fabricators 1 | . . . . 1 . . . . Overload 1 | . . . . 1 . . . . Repair Stations . | . . . . . . . . . Recycling Units . | . . . . . . . . . Scanalyzers . | . . . . . . . . . Garrison Access . | . . . . . . . . . Data Cores Recovered . | . . . . . . . . . Used . | . . . . . . . . . Hacking Detections 5 | . . . 1 3 . 1 . . Full Trace Events 2 | . . . . 1 . 1 . . Feedback Events . | . . . . . . . . . Feedback Blocked . | . . . . . . . . . Robot Schematics Acquired . | . . . . . . . . . Robots Built . | . . . . . . . . . Authchips . | . . . . . . . . . Time . | . . . . . . . . . Total Robot Build Rating . | . . . . . . . . . Part Schematics Acquired . | . . . . . . . . . Parts Built . | . . . . . . . . . Authchips . | . . . . . . . . . Time . | . . . . . . . . . Total Part Build Rating . | . . . . . . . . . Parts Repaired . | . . . . . . . . . Time . | . . . . . . . . . Parts Recycled . | . . . . . . . . . Recycled Matter . | . . . . . . . . . Retrieved Matter . | . . . . . . . . . Retrieved Components . | . . . . . . . . . Parts Scanalyzed . | . . . . . . . . . Part Schematics Acquired . | . . . . . . . . . Parts Damaged . | . . . . . . . . . Bothacking | -11 -10 -9 -8 -7 -6 -5 -5 -5 ------------ Run | Jun Mat Mat Mat Fac Fac Fac Upp Upp Used RIF Installer . | . . . . . . . . . Robots Hacked . | . . . . . . . . . Non-combat . | . . . . . . . . . Combat . | . . . . . . . . . Robot Hacks Applied . | . . . . . . . . . Relay Couplers Released . | . . . . . . . . . Fabnet Peak Effective % . | . . . . . . . . . Robots Rewired . | . . . . . . . . . Allies Hacked . | . . . . . . . . . Hacks Repelled . | . . . . . . . . . Allies | -11 -10 -9 -8 -7 -6 -5 -5 -5 -------- Run | Jun Mat Mat Mat Fac Fac Fac Upp Upp Total Allies . | . . . . . . . . . Largest Group . | . . . . . . . . . Highest-Rated Group . | . . . . . . . . . Highest-Rated Ally . | . . . . . . . . . Total Orders . | . . . . . . . . . Ally Attacks . | . . . . . . . . . Total Damage . | . . . . . . . . . Kills . | . . . . . . . . . Allies Corrupted . | . . . . . . . . . Allies Melted . | . . . . . . . . . Intel | -11 -10 -9 -8 -7 -6 -5 -5 -5 ------- Run | Jun Mat Mat Mat Fac Fac Fac Upp Upp Robot Analysis Total 1 | . . . . . . 1 . . Derelict Logs Recovered 2 | . . . . . . . 2 . Drone Launches . | . . . . . . . . . Drone Recoveries . | . . . . . . . . . Exploration | -11 -10 -9 -8 -7 -6 -5 -5 -5 ------------- Run | Jun Mat Mat Mat Fac Fac Fac Upp Upp Turns Passed 1023 | 11 38 60 50 302 122 83 270 87 Spaces Moved 1962 | 22 75 111 100 551 233 166 538 166 Core 1962 | 22 75 111 100 551 233 166 538 166 Treads . | . . . . . . . . . Legs . | . . . . . . . . . Wheels . | . . . . . . . . . Hover . | . . . . . . . . . Flight . | . . . . . . . . . Fastest Speed 50 | 50 50 50 50 50 50 50 50 50 Average Speed 50 | 50 50 50 50 50 50 50 50 50 Slowest Speed 50 | 50 50 50 50 50 50 50 50 50 Overloaded Moves . | . . . . . . . . . Propulsion Burnouts . | . . . . . . . . . Robots Hopped . | . . . . . . . . . Cave-ins Triggered . | . . . . . . . . . Exploration Rate (%) 21 | 3 23 15 12 21 10 6 76 26 Regions Visited 8 Branch Regions 2 Pre-discovered Areas 2 | . . . . . . . 2 . Known Exits Taken . | . . . . . . . . . Unknown Exits Taken 8 | 1 1 1 1 1 1 1 1 . Scrap Searched 1 | . . . . . . . 1 . Spaces Dug . | . . . . . . . . . Terrain Destroyed 42 | . . . . . 42 . . . Melee . | . . . . . . . . . Projectile . | . . . . . . . . . AOE 42 | . . . . . 42 . . . Terrain Rammed . | . . . . . . . . . Walls Destroyed . | . . . . . . . . . Machines Disabled . | . . . . . . . . . Actions | -11 -10 -9 -8 -7 -6 -5 -5 -5 --------- Run | Jun Mat Mat Mat Fac Fac Fac Upp Upp Total 1990 | 21 74 114 99 575 236 165 538 168 Wait 1 | . . . . 1 . . . . Move 1954 | 21 74 110 99 550 232 165 537 166 Hop . | . . . . . . . . . Pick Up 4 | . . . . 3 1 . . . Fast Attach . | . . . . . . . . . Attach 4 | . . . . 2 1 . . 1 Detach 1 | . . . . . 1 . . . Swap . | . . . . . . . . . Drop 1 | . . . . 1 . . . . Fire . | . . . . . . . . . Melee 3 | . . . . 1 1 . . 1 Ram 6 | . . 4 . 2 . . . . Kick . | . . . . . . . . . Crush . | . . . . . . . . . Escape Stasis 15 | . . . . 15 . . . . Rewire 1 | . . . . . . . 1 . Trap . | . . . . . . . . . Miscellaneous . | . . . . . . . . . Route ------- -11/Junkyard -10/Materials -9/Materials -8/Materials -7/Factory -6/Factory -5/Factory -5/Upper Caves -5/Upper Caves History --------- Turn | Location | Event 5 | -11/Junkyard | Discovered new exit (range 13) 12 | -11/Junkyard | Entered Materials 42 | -10/Materials | Discovered new exit (range 13) 50 | -10/Materials | Entered another Materials area 50 | -9/Materials | Evolved 2 slots: Utility x2 92 | -9/Materials | Core integrity fell below 50% 102 | -9/Materials | Discovered new exit (range 16) 109 | -9/Materials | Core integrity fell below 20% 110 | -9/Materials | Entered another Materials area 110 | -8/Materials | Evolved 2 slots: Utility x2 156 | -8/Materials | Discovered new exit (range 9) 160 | -8/Materials | Entered Factory 160 | -7/Factory | Evolved 2 slots: Utility x2 305 | -7/Factory | Build established: Mutant 319 | -7/Factory | Core integrity fell below 50% 457 | -7/Factory | Discovered new exit (range 9) 462 | -7/Factory | Entered another Factory area 462 | -6/Factory | Evolved 2 slots: Utility x2 578 | -6/Factory | Discovered new exit (range 11) 584 | -6/Factory | Entered another Factory area 584 | -5/Factory | Evolved 2 slots: Utility x2 660 | -5/Factory | Discovered new exit (range 16) 667 | -5/Factory | Entered Upper Caves 769 | -5/Upper Caves | Spotted B-75 Beast 783 | -5/Upper Caves | Learned location of Armory (-4) 835 | -5/Upper Caves | Core integrity fell below 50% 906 | -5/Upper Caves | Core integrity fell below 20% 930 | -5/Upper Caves | Discovered new exit (range 9) 937 | -5/Upper Caves | Entered another Upper Caves area 967 | -5/Upper Caves | Attacked by a delusional Derelict stockpiling parts 1024 | -5/Upper Caves | Destroyed by G-50 Soldier with Heavy Laser Last Messages --------------- 00756_ Imp. Light Armor Plating destroyed. 00783_ Acquired derelict log, extracted data. World map updated: -4/Armory. 00834_ Critical hit (Burn: +50). 00841_ G-50 Soldier knocked back. 00842_ Acquired 6 matter. 00849_ Acquired 1 matter. 00854_ Penetrated by Slug. 00854_ Slug penetrates Wall. 00857_ Penetrated by Slug. 00884_ QX-XWU(k) breaks down the debris. 00913_ Acquired 43 matter. 00914_ P-70 Sage hacks T6-WA9(S), rebooting. 00930_ EXIT=FOUND 00936_ Acquired derelict log, extracted data. World map updated: -7/Factory. LOCATION=UNKNOWN GOAL=ESCAPE 00966_ Locked Door breached. 00967_ 3A-IA6(M): "This is MY stuff!" Map ----- +----------------------------------------------------+ | ??????????? ???????????????????????????????????? | | ???????????# #???????????????????????????????????? | | ???????????# ##??????????????????????????????????? | | ????????##### #???????????????#######????????????? | | ??????### ## #??????????????## ###??????????? | | ?????# ###########?#### #??????????? | | ????## ### #??????????? | | ????### ## #??????????? | | #?????### ####### ## ###??????????? | | #??????## #?# ## ######????????????? | | ? #####??# #?# ## ###????????????? #? | | ?? ##?# #?# # ## #????????????? #? | | ???? ### ### # ## #??#######??? #? | | ?????# ## #% #?## ## #??# ## | | ???### ##### # ##?# ### | | ??## ##?# ## ### | | ### ### ### | | # #?## | | ## #??#### "" " | | ###########?????## #### """" " | | ##????????????#### #??# """ "" | | ###?????????## ## #?## " " | | ##???????## ## #?# | | ##?????## ### ### | | #????## #?# ## | | #???## ##@ #?### | | #??## ### #??## ## | | ### ## ##?# ##?# g #???###### ### | | ###?# #### ### #??## #????????#####?# | | ????## #??# ## #???? gg??????????????# | | ?????# ?# ##???? g ?????????????# | | ?????# #### #?????# ????????????## | | ?????# #??## ##??????# ????????????# | | ?????#####???### ###???????? #????????? | | ???????????????###?????????? ????????#### # | | ????????????????????????????? ??????????# ### | | ????????????????????????????? ?????????# #?? | | ????????????????????????????? ## ?????????# #?? | | ??????????????????????????????#????????????? #?? | | ????????????????????????????????????????????####?? | | ?????????????????????????????????????????????????? | | ?????????????????????????????????????????????????? | | ?????????????????????????????????????????????????? | | ?????????????????????????????????????????????????? | | ?????????????????????????????????????????????????? | | ?????????????????????????????????????????????????? | | ?????????????????????????????????????????????????? | | ?????????????????????????????????????????????????? | | ?????????????????????????????????????????????????? | | ?????????????????????????????????????????????????? | +----------------------------------------------------+ Best States ------------- Heat Dissipation 40 Energy Generation 5 Energy Capacity 100 Matter Stores 192 Matter Capacity 300 Sight Range 16 Terrain Scan Density 10 Armor Coverage 150 Evasion (%) 58 Item Schematics ----------------- None Robot Schematics ------------------ None Fabricated ------------ Nothing Alien Tech Used ----------------- None Achievements -------------- None Challenges ------------ None Game ------ Seed RemoteFactoryCoupler Manual? 0 Play Time 00:13:18 Cumulative 90.0 hours Start 2023.04.09 @ 23:45:06 End 2023.04.09 @ 23:57:42 Sessions 1 Manual Loads 0 Difficulty Rogue Special Mode None Game No. 131 Rogue 131 Adventurer 0 Explorer 0 Win Type - Total 2 Types 2/0/0/0/0/0/0/0/0 Lore% 53 Gallery% 55 Achievement% 45 Wizard Run 0 Options --------- ASCII 0 Keyboard 0 Movement Numpad Keybinds 0 Fullscreen 1 Font 12/Smallcaps Map View 83x54 Tactical HUD 1 Map Filters NONE Filters NONE Steam 1 RUN: 727ae7cb-1656-406f-95fc-2301398d4fe8